fUSD/lending_fUSD_20240517
["ID","MTS","AMOUNT","RATE_DAILY","PERIOD"]
[327242837,1715917834445,-212.31402815,0.00012478,2]
[327242838,1715917834455,-252.32718806,0.000125,2]
[327242839,1715917834465,-400.0,0.000125,4]
[327242840,1715917834475,-155.0,0.000125,2]
[327242841,1715917834484,-153.63497143,0.00012556,2]
[327242842,1715917834494,-151.72,0.00012594,2]
[327242843,1715917834503,-400.0,0.000126,4]
[327242844,1715917834513,-500.0,0.000126,2]
[327242845,1715917834523,-798.0,0.0001261,2]
[327242846,1715917834533,-3694.354,0.00012643,2]
[327242847,1715917834542,-555.74473086,0.00012677,2]
[327242848,1715917834552,-514.92654088,0.00012677,2]
[327242849,1715917834561,-595.52348612,0.00012677,2]
[327242850,1715917834571,-552.05927498,0.00012677,2]
[327242851,1715917834581,-500.0,0.00012677,2]
[327242852,1715917834590,-500.0,0.00012677,2]
[327242853,1715917834600,-546.1467758,0.00012677,2]
[327242854,1715917834610,-590.78785858,0.00012677,2]
[327242855,1715917834620,-500.0,0.00012677,2]
[327242856,1715917834631,-630.00808969,0.00012677,2]
[327242857,1715917834640,-570.25933295,0.00012677,2]
[327242858,1715917834650,-545.53341162,0.00012677,2]
[327242859,1715917834660,-500.0,0.00012677,2]
[327242860,1715917834672,-582.39564064,0.00012677,2]
[327242861,1715917834681,-183.4378,0.00012677,2]
[327242862,1715917834691,-500.0,0.00012677,2]
[327242863,1715917834700,-500.0,0.00012677,2]
[327242864,1715917834710,-500.0,0.00012677,2]
[327242865,1715917834720,-500.0,0.00012677,2]
[327242866,1715917834729,-535.00583818,0.00012677,2]
[327242867,1715917834739,-500.0,0.00012677,2]
[327242868,1715917834748,-500.0,0.00012677,2]
[327242869,1715917834758,-500.0,0.00012677,2]
[327242870,1715917834767,-1791.0,0.00012678,2]
[327242871,1715917834777,-544.0,0.00012678,2]
[327242872,1715917834787,-1225.0,0.00012678,2]
[327242873,1715917834797,-612.0,0.00012678,2]
[327242874,1715917834807,-289.0,0.00012678,2]
[327242875,1715917834816,-1047.0,0.00012678,2]
[327242876,1715917834826,-5914.0,0.00012678,2]
[327242877,1715917834836,-37858.0,0.00012678,2]
[327242878,1715917834845,-400.0,0.000127,4]
[327242879,1715917834855,-511.18444462,0.00012729,2]
[327242880,1715917834865,-470.0,0.00012729,2]
[327242881,1715917834875,-500.0,0.00012729,2]
[327242882,1715917834885,-500.0,0.00012729,2]
[327242883,1715917834894,-500.0,0.00012729,2]
[327242884,1715917834904,-500.0,0.00012729,2]
[327242885,1715917834913,-500.0,0.00012729,2]
[327242886,1715917834924,-804.53,0.00012729,2]
[327242887,1715917834933,-151.21,0.00012729,2]
[327242888,1715917834943,-150.0,0.00012729,2]
[327242889,1715917834953,-150.0,0.00012729,2]
[327242890,1715917834963,-150.0,0.00012729,2]
[327242891,1715917834972,-150.0,0.00012729,2]
[327242892,1715917834982,-150.0,0.00012729,2]
[327242893,1715917834991,-1107.83968027,0.0001273,2]
[327242894,1715917835001,-798.0,0.0001274,2]
[327242895,1715917835011,-500.0,0.00012779,2]
[327242896,1715917835022,-500.0,0.00012788,2]
[327242897,1715917835031,-153.63497143,0.00012794,2]
[327242898,1715917835043,-500.0,0.00012797,2]
[327242899,1715917835053,-500.0,0.00012798,2]
[327242900,1715917835063,-500.0,0.00012798,2]
[327242901,1715917835072,-561.23376635,0.00012798,2]
[327242902,1715917835083,-361.53264191,0.00012798,2]
[327242903,1715917835092,-500.0,0.00012798,2]
[327242904,1715917835102,-513.96299706,0.00012798,2]
[327242905,1715917835111,-500.0,0.00012799,2]
[327242906,1715917835121,-500.0,0.00012799,2]
[327242907,1715917835130,-1027.66,0.00012799,2]
[327242908,1715917835140,-900.0,0.000128,4]
[327242909,1715917835150,-500.0,0.00012805,2]
[327242910,1715917835159,-500.0,0.00012814,2]
[327242911,1715917835171,-500.0,0.00012823,2]
[327242912,1715917835180,-500.0,0.00012832,2]
[327242913,1715917835191,-500.0,0.00012841,2]
[327242914,1715917835201,-500.0,0.00012849,2]
[327242915,1715917835210,-4895.0,0.00012852,2]
[327242916,1715917835221,-248.0,0.00012852,2]
[327242917,1715917835231,-500.0,0.00012858,2]
[327242918,1715917835241,-158.31558459,0.00012866,2]
[327242919,1715917835251,-500.0,0.00012867,2]
[327242920,1715917835261,-798.0,0.0001287,2]
[327242921,1715917835271,-500.0,0.00012876,2]
[327242922,1715917835281,-500.0,0.00012885,2]
[327242923,1715917835290,-467.33494077,0.00012893,2]
[327242924,1715917835300,-500.0,0.00012893,2]
[327242925,1715917835309,-1337.15,0.00012893,2]
[327242926,1715917835319,-558.00951928,0.00012893,2]
[327242927,1715917835330,-500.0,0.00012893,2]
[327242928,1715917835340,-22010.7916,0.00012894,2]
[327242929,1715917835351,-288.976024,0.00012895,2]
[327242930,1715917835361,-200.0,0.00012895,2]
[327242931,1715917835370,-200.0,0.00012896,2]
[327242932,1715917835381,-1000.0,0.00012896,2]
[327242933,1715917835391,-500.0,0.00012896,2]
[327242934,1715917835401,-425.063,0.00012899,2]
[327242935,1715917835411,-3777.0787,0.00012899,2]
[327242936,1715917835422,-500.0,0.00012902,2]
[327242937,1715917835432,-500.0,0.00012911,2]
[327242938,1715917835442,-500.0,0.0001292,2]
[327242939,1715917835452,-500.0,0.00012929,2]
[327242940,1715917835461,-500.0,0.00012937,2]
[327242941,1715917835471,-500.0,0.00012946,2]
[327242942,1715917835481,-500.0,0.00012955,2]
[327242943,1715917835490,-500.0,0.00012964,2]
[327242944,1715917835500,-500.0,0.00012973,2]
[327242945,1715917835510,-183.05942095,0.00012981,2]
[327242946,1715917835520,-500.0,0.00012981,2]
[327242947,1715917835536,-616.0,0.00012982,2]
[327242948,1715917835549,-1701.58483033,0.00012982,2]
[327242949,1715917835565,-417.97251955,0.00012982,2]
[327242950,1715917835578,-2472.51044719,0.00012982,2]
[327242951,1715917835587,-164.52,0.00012984,2]
[327242952,1715917835597,-164.52,0.00012989,2]
[327242953,1715917835608,-88.7216548,0.00012989,2]
[327242954,1715917835637,-4100.0,0.000124,2]
[327242970,1715917837776,-2221.6315313,8.83e-05,2]
[327242971,1715917837786,-6834.65564137,0.000124,2]
[327242972,1715917837796,-150.0,0.00012678,2]
[327242973,1715917837806,-532.66,0.00012729,2]
[327242974,1715917837816,-412.1763502,0.00012989,2]
[327242975,1715917837826,-500.0,0.00012989,2]
[327242976,1715917837835,-1027.66,0.00012989,2]
[327242977,1715917837845,-35719.45760273,0.0001299,2]
[327242978,1715917837855,-500.0,0.0001299,2]
[327242979,1715917837864,-1000.0,0.00012991,2]
[327242980,1715917837873,-1000.0,0.00012991,2]
[327242981,1715917837883,-1000.0,0.00012991,2]
[327242982,1715917837893,-1000.0,0.00012991,2]
[327242983,1715917837902,-1000.0,0.00012991,2]
[327242984,1715917837912,-1000.0,0.00012991,2]
[327242985,1715917837923,-158.0,0.00012991,2]
[327242986,1715917837933,-151.0,0.00012991,2]
[327242987,1715917837941,-151.0,0.00012991,2]
[327242988,1715917837949,-151.0,0.00012991,2]
[327242989,1715917837958,-151.0,0.00012991,2]
[327242990,1715917837967,-1560.6702398,0.00012991,2]
[327242991,1715917837976,-1251.51107,0.00012991,2]
[327242992,1715917837985,-942.3519002,0.00012991,2]
[327242993,1715917837995,-633.1927305,0.00012991,2]
[327242994,1715917838004,-324.0335607,0.00012991,2]
[327242995,1715917838013,-161.094692,0.00012991,2]
[327242996,1715917838022,-164.883779,0.00012991,2]
[327242997,1715917838031,-182.475525,0.00012991,2]
[327242998,1715917838042,-151.0,0.00012991,2]
[327242999,1715917838053,-4830.6018611,0.00012991,2]
[327243000,1715917838064,-3873.6893611,0.00012991,2]
[327243001,1715917838074,-2916.776861,0.00012991,2]
[327243002,1715917838084,-1959.864361,0.00012991,2]
[327243003,1715917838094,-1002.951861,0.00012991,2]
[327243004,1715917838104,-165.012952,0.00012991,2]
[327243005,1715917838113,-151.0,0.00012991,2]
[327243006,1715917838122,-12816.564488,0.00012991,2]
[327243007,1715917838133,-10286.3051775,0.00012991,2]
[327243008,1715917838142,-5063.73508313,0.00012991,2]
[327243009,1715917838162,-2692.31078387,0.00012991,2]
[327243010,1715917838173,-5225.7865565,0.00012991,2]
[327243011,1715917838182,-2695.527246,0.00012991,2]
[327243012,1715917838192,-4845.4116703,0.00012991,2]
[327243013,1715917838203,-3888.8255272,0.00012991,2]
[327243014,1715917838212,-2932.239384,0.00012991,2]
[327243015,1715917838221,-1975.6532409,0.00012991,2]
[327243016,1715917838231,-1019.0670977,0.00012991,2]
[327243017,1715917838240,-151.0,0.00012991,2]
[327243018,1715917838250,-190.03,0.00012993,2]
[327243019,1715917838260,-500.0,0.00012993,2]
[327243020,1715917838270,-500.0,0.00012993,2]
[327243021,1715917838280,-500.0,0.00012993,2]
[327243022,1715917838289,-407.59,0.00012993,2]
[327243023,1715917838299,-804.53,0.00012993,2]
[327243024,1715917838308,-500.0,0.00012993,2]
[327243025,1715917838317,-532.66,0.00012993,2]
[327243026,1715917838327,-210.10559535,0.00012994,2]
[327243027,1715917838336,-6712.80663397,0.00012994,2]
[327243028,1715917838345,-499.35331155,0.00012994,2]
[327243029,1715917838355,-1000.0,0.00012994,2]
[327243030,1715917838364,-320.95413161,0.00012994,2]
[327243031,1715917838374,-1274.49413332,0.00012994,2]
[327243032,1715917838383,-1148.68318995,0.00012994,2]
[327243033,1715917838392,-155.23632349,0.00012994,2]
[327243034,1715917838402,-155.0,0.00012994,2]
[327243035,1715917838411,-155.78767569,0.00012994,2]
[327243036,1715917838420,-523.68199774,0.00012994,2]
[327243037,1715917838429,-155.5178741,0.00012994,2]
[327243038,1715917838439,-155.4567507,0.00012994,2]
[327243039,1715917838448,-155.14464026,0.00012994,2]
[327243040,1715917838457,-1252.23404788,0.00012994,2]
[327243041,1715917838467,-406.42468759,0.00012994,2]
[327243042,1715917838476,-205.01098892,0.00012994,2]
[327243043,1715917838485,-162.04965122,0.00012994,2]
[327243044,1715917838494,-155.0,0.00012994,2]
[327243045,1715917838503,-5311.39182132,0.00012994,2]
[327243046,1715917838513,-155.15556806,0.00012994,2]
[327243047,1715917838522,-304.30621889,0.00012994,2]
[327243048,1715917838532,-208.17791052,0.00012994,2]
[327243049,1715917838541,-156.07906646,0.00012994,2]
[327243050,1715917838550,-1998.06206585,0.00012994,2]
[327243051,1715917838560,-167.59589683,0.00012994,2]
[327243052,1715917838569,-1316.61004397,0.00012994,2]
[327243053,1715917838579,-477.24083017,0.00012994,2]
[327243054,1715917838588,-290.42894301,0.00012994,2]
[327243055,1715917838597,-3533.63059213,0.00012994,2]
[327243056,1715917838607,-1343.63972586,0.00012994,2]
[327243057,1715917838616,-327.32319292,0.00012994,2]
[327243058,1715917838625,-156.34146276,0.00012994,2]
[327243059,1715917838635,-212.95826661,0.00012994,2]
[327243060,1715917838645,-320.20726026,0.00012994,2]
[327243061,1715917838654,-155.0,0.00012994,2]
[327243062,1715917838663,-2223.01119445,0.00012994,2]
[327243063,1715917838673,-788.18220101,0.00012994,2]
[327243064,1715917838682,-216.54639568,0.00012994,2]
[327243065,1715917838691,-1439.37180304,0.00012994,2]
[327243066,1715917838701,-156.34895342,0.00012994,2]
[327243067,1715917838710,-157.6878,0.00012994,2]
[327243068,1715917838719,-156.21614688,0.00012994,2]
[327243069,1715917838729,-49.05600705,0.00012994,2]
[327243070,1715917838746,-575.32369476,0.00012994,2]
[327243071,1715917838755,-3059.56614413,0.00012994,2]
[327243072,1715917838764,-151.0,0.00012994,2]
[327243073,1715917838773,-151.0,0.00012994,2]
[327243074,1715917838783,-151.0,0.00012994,2]
[327243075,1715917838791,-151.0,0.00012994,2]
[327243076,1715917838801,-151.0,0.00012994,2]
[327243077,1715917838810,-151.0,0.00012994,2]
[327243078,1715917838819,-151.0,0.00012994,2]
[327243079,1715917838828,-151.0,0.00012994,2]
[327243080,1715917838837,-151.0,0.00012994,2]
[327243081,1715917838847,-1490.95509883,0.00012994,2]
[327243082,1715917838856,-150.72206167,0.00012995,2]
[327243083,1715917838866,-5867.46418463,0.00012995,2]
[327243084,1715917838875,-500.0,0.00012995,2]
[327243085,1715917838884,-500.0,0.00012995,2]
[327243086,1715917838893,-1027.66,0.00012995,2]
[327243087,1715917838902,-1027.66,0.00012995,2]
[327243088,1715917838911,-500.0,0.00012995,2]
[327243089,1715917838922,-500.0,0.00012995,2]
[327243090,1715917838931,-500.0,0.00012995,2]
[327243091,1715917838941,-500.0,0.00012995,2]
[327243092,1715917838950,-500.0,0.00012995,2]
[327243093,1715917838960,-500.0,0.00012995,2]
[327243094,1715917838969,-500.0,0.00012995,2]
[327243095,1715917838978,-1337.15,0.00012995,2]
[327243096,1715917838987,-1337.15,0.00012995,2]
[327243097,1715917838998,-804.53,0.00012995,2]
[327243098,1715917839007,-500.0,0.00012995,2]
[327243099,1715917839017,-532.66,0.00012995,2]
[327243100,1715917839026,-348859.54256027,0.00012996,2]
[327243101,1715917839036,-151.0,0.00012996,2]
[327243102,1715917839049,-151.0,0.00012996,2]
[327243103,1715917839058,-151.0,0.00012996,2]
[327243104,1715917839068,-151.0,0.00012996,2]
[327243105,1715917839077,-153.52446,0.00012996,2]
[327243106,1715917839087,-151.0,0.00012996,2]
[327243107,1715917839096,-151.0,0.00012996,2]
[327243108,1715917839105,-151.0,0.00012996,2]
[327243109,1715917839114,-151.0,0.00012996,2]
[327243110,1715917839124,-151.0,0.00012996,2]
[327243111,1715917839133,-151.0,0.00012996,2]
[327243112,1715917839143,-151.0,0.00012996,2]
[327243113,1715917839152,-164.045833,0.00012996,2]
[327243114,1715917839161,-151.0,0.00012996,2]
[327243115,1715917839173,-5787.5143611,0.00012996,2]
[327243116,1715917839182,-151.0,0.00012996,2]
[327243117,1715917839191,-15346.8237985,0.00012996,2]
[327243118,1715917839201,-5801.9978135,0.00012996,2]
[327243119,1715917839210,-151.0,0.00012996,2]
[327243120,1715917839220,-500.0,0.00012998,2]
[327243121,1715917839229,-459.74105855,0.00012998,2]
[327243128,1715917839953,-2199.20394,0.0001299,2]
[327243129,1715917839963,-40.25894145,0.00012998,2]
[327243130,1715917839972,-500.0,0.00012998,2]
[327243131,1715917839981,-74.16073475,0.00012998,2]
[327243132,1715917840017,-730.36926525,0.00012998,2]
[327243133,1715917840027,-500.0,0.00012998,2]
[327243134,1715917840037,-532.66,0.00012998,2]
[327243135,1715917840052,-500.0,0.00012999,2]
[327243136,1715917840062,-500.0,0.00012999,2]
[327243137,1715917840071,-151.0,0.00012999,2]
[327243138,1715917840082,-500.0,0.00012999,2]
[327243139,1715917840092,-500.0,0.00012999,2]
[327243140,1715917840101,-500.0,0.00012999,2]
[327243141,1715917840110,-376.90623772,0.00012999,2]
[327243142,1715917840122,-123.09376228,0.00012999,2]
[327243143,1715917840132,-500.0,0.00012999,2]
[327243144,1715917840142,-500.0,0.00012999,2]
[327243145,1715917840151,-500.0,0.00012999,2]
[327243146,1715917840161,-500.0,0.00012999,2]
[327243147,1715917840171,-172.09178369,0.00012999,2]
[327243148,1715917840181,-1027.66,0.00012999,2]
[327243149,1715917840191,-47.77059615,0.00012999,2]
[327243150,1715917840425,-979.88940385,0.00012999,2]
[327243151,1715917840435,-1027.66,0.00012999,2]
[327243152,1715917840444,-1027.66,0.00012999,2]
[327243153,1715917840453,-1027.66,0.00012999,2]
[327243154,1715917840462,-1027.66,0.00012999,2]
[327243155,1715917840471,-1027.66,0.00012999,2]
[327243156,1715917840481,-1027.66,0.00012999,2]
[327243157,1715917840490,-724.04749968,0.00012999,2]
[327243183,1715917843129,-151.0,0.00012991,2]
[327243185,1715917843140,-181.000239,0.00012991,2]
[327243187,1715917843150,-151.0,0.00012991,2]
[327243189,1715917843159,-311.6382349,0.00012991,2]
[327243191,1715917843168,-311.6382349,0.00012991,2]
[327243193,1715917843179,-311.6382349,0.00012991,2]
[327243195,1715917843189,-311.6382349,0.00012991,2]
[327243197,1715917843198,-311.6382349,0.00012991,2]
[327243199,1715917843207,-777.50756563,0.00012995,2]
[327243244,1715917845698,-2274.86999937,0.00012175,2]
[327243245,1715917845987,-1357.39900063,0.00012175,2]
[327243246,1715917845996,-181.000239,0.00012991,2]
[327243247,1715917846006,-657.45583779,0.00012994,2]
[327243248,1715917846017,-151.0,0.00012996,2]
[327243249,1715917846026,-311.6382349,0.00012996,2]
[327243250,1715917846036,-151.0,0.00012996,2]
[327243251,1715917846048,-181.000239,0.00012996,2]
[327243253,1715917846058,-181.000239,0.00012996,2]
[327243255,1715917846067,-19626.96507151,0.00012998,2]
[327243257,1715917846076,-303.61250032,0.00012999,2]
[327243280,1715917846272,-1027.66,0.00012999,2]
[327243282,1715917846281,-1027.66,0.00012999,2]
[327243284,1715917846291,-1027.66,0.00012999,2]
[327243286,1715917846300,-1027.66,0.00012999,2]
[327243288,1715917846309,-1027.66,0.00012999,2]
[327243290,1715917846318,-1027.66,0.00012999,2]
[327243292,1715917846327,-1027.66,0.00012999,2]
[327243294,1715917846337,-1027.66,0.00012999,2]
[327243296,1715917846346,-1027.66,0.00012999,2]
[327243298,1715917846355,-1027.73826676,0.00012999,2]
[327243300,1715917846364,-500.0,0.00012999,2]
[327243302,1715917846373,-500.0,0.00012999,2]
[327243304,1715917846382,-500.0,0.00012999,2]
[327243305,1715917846391,-500.0,0.00012999,2]
[327243308,1715917846401,-500.0,0.00012999,2]
[327243310,1715917846410,-500.0,0.00012999,2]
[327243312,1715917846419,-522.3456,0.00012999,2]
[327243314,1715917846430,-614.84333785,0.00012999,2]
[327243316,1715917846439,-500.0,0.00012999,2]
[327243318,1715917846447,-500.0,0.00012999,2]
[327243320,1715917846456,-500.0,0.00012999,2]
[327243322,1715917846466,-500.0,0.00012999,2]
[327243324,1715917846475,-500.0,0.00012999,2]
[327243326,1715917846484,-451.31201407,0.00012999,2]
[327243328,1715917846494,-500.0,0.00012999,2]
[327243330,1715917846503,-503.27624566,0.00012999,2]
[327243332,1715917846512,-500.0,0.00012999,2]
[327243334,1715917846521,-500.0,0.00012999,2]
[327243336,1715917846530,-500.0,0.00012999,2]
[327243338,1715917846539,-500.0,0.00012999,2]
[327243339,1715917846549,-500.0,0.00012999,2]
[327243341,1715917846558,-500.0,0.00012999,2]
[327243343,1715917846568,-500.0,0.00012999,2]
[327243345,1715917846577,-500.0,0.00012999,2]
[327243347,1715917846587,-500.0,0.00012999,2]
[327243349,1715917846597,-500.0,0.00012999,2]
[327243351,1715917846606,-500.0,0.00012999,2]
[327243354,1715917846616,-500.0,0.00012999,2]
[327243355,1715917846625,-500.0,0.00012999,2]
[327243358,1715917846634,-500.0,0.00012999,2]
[327243360,1715917846643,-500.0,0.00012999,2]
[327243362,1715917846652,-500.0,0.00012999,2]
[327243364,1715917846661,-500.0,0.00012999,2]
[327243365,1715917846671,-202.46812421,0.00012999,2]
[327243368,1715917846683,-1337.15,0.00012999,2]
[327243370,1715917846692,-1337.15,0.00012999,2]
[327243372,1715917846702,-1337.15,0.00012999,2]
[327243373,1715917846711,-1337.15,0.00012999,2]
[327243376,1715917846720,-1337.15,0.00012999,2]
[327243378,1715917846730,-1337.15,0.00012999,2]
[327243380,1715917846740,-1337.15,0.00012999,2]
[327243382,1715917846749,-1337.15,0.00012999,2]
[327243384,1715917846757,-1337.15,0.00012999,2]
[327243386,1715917846766,-1337.15,0.00012999,2]
[327243387,1715917846776,-1337.15,0.00012999,2]
[327243389,1715917846785,-1337.15,0.00012999,2]
[327243392,1715917846795,-1337.15,0.00012999,2]
[327243393,1715917846804,-1337.15,0.00012999,2]
[327243395,1715917846814,-1337.15,0.00012999,2]
[327243398,1715917846823,-1337.15,0.00012999,2]
[327243399,1715917846832,-1337.15,0.00012999,2]
[327243401,1715917846841,-1337.15,0.00012999,2]
[327243403,1715917846851,-1337.15,0.00012999,2]
[327243405,1715917846860,-1337.28395515,0.00012999,2]
[327243408,1715917846870,-804.53,0.00012999,2]
[327243410,1715917846879,-804.53,0.00012999,2]
[327243412,1715917846889,-804.53,0.00012999,2]
[327243414,1715917846898,-804.53,0.00012999,2]
[327243416,1715917846908,-804.53,0.00012999,2]
[327243418,1715917846918,-804.53,0.00012999,2]
[327243419,1715917846929,-804.53,0.00012999,2]
[327243421,1715917846939,-804.53,0.00012999,2]
[327243423,1715917846947,-804.53,0.00012999,2]
[327243425,1715917846957,-804.53,0.00012999,2]
[327243427,1715917846967,-804.53,0.00012999,2]
[327243429,1715917846976,-804.53,0.00012999,2]
[327243431,1715917846985,-804.53,0.00012999,2]
[327243434,1715917846995,-804.53,0.00012999,2]
[327243435,1715917847006,-804.53,0.00012999,2]
[327243437,1715917847015,-804.53,0.00012999,2]
[327243440,1715917847025,-804.53,0.00012999,2]
[327243442,1715917847034,-804.53,0.00012999,2]
[327243444,1715917847045,-804.71207758,0.00012999,2]
[327243446,1715917847055,-500.0,0.00012999,2]
[327243447,1715917847064,-500.0,0.00012999,2]
[327243450,1715917847073,-532.66,0.00012999,2]
[327243452,1715917847082,-500.0,0.00012999,2]
[327243454,1715917847091,-532.66,0.00012999,2]
[327243456,1715917847100,-500.0,0.00012999,2]
[327243457,1715917847109,-532.66,0.00012999,2]
[327243459,1715917847118,-500.0,0.00012999,2]
[327243461,1715917847127,-532.66,0.00012999,2]
[327243463,1715917847136,-500.0,0.00012999,2]
[327243465,1715917847145,-532.66,0.00012999,2]
[327243467,1715917847154,-500.0,0.00012999,2]
[327243469,1715917847163,-532.66,0.00012999,2]
[327243471,1715917847172,-500.0,0.00012999,2]
[327243473,1715917847184,-532.66,0.00012999,2]
[327243475,1715917847193,-500.0,0.00012999,2]
[327243477,1715917847202,-532.66,0.00012999,2]
[327243479,1715917847212,-531.56657266,0.00012999,2]
[327243481,1715917847221,-532.66,0.00012999,2]
[327243483,1715917847230,-532.66,0.00012999,2]
[327243486,1715917847240,-532.66,0.00012999,2]
[327243488,1715917847249,-532.66,0.00012999,2]
[327243490,1715917847258,-532.66,0.00012999,2]
[327243492,1715917847267,-532.66,0.00012999,2]
[327243493,1715917847275,-532.66,0.00012999,2]
[327243494,1715917847285,-532.66,0.00012999,2]
[327243495,1715917847294,-532.66,0.00012999,2]
[327243496,1715917847303,-532.66,0.00012999,2]
[327243497,1715917847312,-532.78843158,0.00012999,2]
[327243498,1715917847321,-109745.95461066,0.00013,2]
[327243501,1715917849102,39200.2471344,0.0002,60]
[327243503,1715918067395,329.0,0.0002308,120]
[327243505,1715918660036,-313.76801603,8.954e-05,2]
[327243506,1715918660057,-3086.21,8.955e-05,2]
[327243507,1715918660077,-9008.9338,9.648e-05,2]
[327243508,1715918660097,-939.18882355,9.749e-05,2]
[327243509,1715918660119,-1426.42,0.00010763,2]
[327243510,1715918660139,-1500.0,0.00010783,2]
[327243511,1715918660160,-20688.15,0.00010859,2]
[327243512,1715918660184,-185.12,0.00010878,2]
[327243513,1715918660205,-200.0,0.00010885,2]
[327243514,1715918660228,-469.46,0.00010903,2]
[327243515,1715918660249,-859.83,0.00010959,2]
[327243516,1715918660269,-938.66,0.00010989,2]
[327243517,1715918660291,-214.65,0.00010996,2]
[327243518,1715918660311,-2500.0,0.00011069,2]
[327243519,1715918660333,-179.87,0.00011169,2]
[327243520,1715918660353,-3086.21,0.00011219,2]
[327243521,1715918660375,-172.28,0.00011225,2]
[327243522,1715918660396,-499.99,0.00011225,2]
[327243523,1715918660417,-174.649326,0.00011233,2]
[327243524,1715918660441,-185.84905,0.00011233,2]
[327243525,1715918660469,-174.649326,0.00011233,2]
[327243526,1715918660492,-185.84905,0.00011233,2]
[327243527,1715918660515,-250.0,0.00011323,2]
[327243528,1715918660537,-150.0,0.0001143,2]
[327243529,1715918660561,-179.87,0.0001146,2]
[327243530,1715918660584,-186.39863867,0.00011472,2]
[327243531,1715918660606,-185.84905,0.00011514,2]
[327243532,1715918660629,-185.84905,0.00011514,2]
[327243533,1715918660651,-150.0,0.00011573,2]
[327243534,1715918660674,-1001.63,0.00011617,15]
[327243535,1715918660697,-216.82,0.00011669,2]
[327243536,1715918660718,-503.84586975,0.00011712,2]
[327243541,1715919032265,-313.76801603,0.00010956,2]
[327243542,1715919032274,-348.85446635,0.00010957,2]
[327243543,1715919032283,-1060.2618121,0.00010959,2]
[327243544,1715919032296,-1944.7381879,0.00010959,2]
[327243545,1715919032305,-1038.72,0.0001128,15]
[327243546,1715919032315,-169.76,0.00011281,2]
[327243547,1715919032326,-1408.78299102,0.00011311,2]
[327243548,1715919032338,-257.69726089,0.00011311,2]
[327243549,1715919032349,-482.99531256,0.00011311,2]
[327243550,1715919032364,-145.64798214,0.00011311,2]
[327243551,1715919032373,-250.0,0.00011311,2]
[327243552,1715919032383,-239.35,0.00011341,2]
[327243553,1715919032392,-200.0,0.0001137,2]
[327243554,1715919032401,-179.87,0.00011372,2]
[327243555,1715919032411,-2026.78889815,0.00011712,2]
[327243556,1715919032422,-795.00263647,0.00011712,2]
[327243557,1715919032433,-4694.85115299,0.00011712,2]
[327243558,1715919032443,-220.32413025,0.00011712,2]
[327243559,1715919032452,-2500.0,0.00011742,2]
[327243560,1715919032463,-446.31,0.00011742,2]
[327243561,1715919032472,-232.63,0.00011742,2]
[327243562,1715919032481,-1467.77,0.00011742,2]
[327243563,1715919032490,-1040.49795814,0.00011751,2]
[327243564,1715919032501,-299.99,0.00011751,2]
[327243565,1715919032513,-661.68277074,0.00011751,2]
[327243566,1715919032524,-1578.55756815,0.00011751,2]
[327243567,1715919032603,-72.73170297,0.00011751,2]
[327243569,1715919032612,-150.99,0.00011751,2]
[327243571,1715919032623,-185.84905,0.00011795,2]
[327243573,1715919032632,-185.84905,0.00011795,2]
[327243576,1715919032642,-800.0,0.000119,4]
[327243577,1715919032651,-1501.77727144,0.00011999,2]
[327243579,1715919032662,-951.92113016,0.00012,2]